[Event "NJSK 2024 C"]
[Site "Groningen, Netherlands"]
[Date "2024.05.01"]
[Round "6.4"]
[White "Aravindhan, Achyuth"]
[Black "Terlouw, Wouter"]
[Result "1-0"]
[TimeControl "90min/40moves + 30min + 30sec/move"]
[WhiteElo "2071"]
[BlackElo "1961"]

1. e4 {[%clk 01:28:51]} {[%emt 00:02:08]} c5 {[%clk 01:30:55]} {[%emt
00:00:05]} 2. Nf3 {[%clk 01:29:17]} {[%emt 00:00:04]} Nc6 {[%clk 01:31:21]}
{[%emt 00:00:05]} 3. d4 {[%clk 01:29:42]} {[%emt 00:00:04]} cxd4 {[%clk
01:31:47]} {[%emt 00:00:04]} 4. Nxd4 {[%clk 01:30:08]} {[%emt 00:00:05]} Nf6
{[%clk 01:32:12]} {[%emt 00:00:04]} 5. Nc3 {[%clk 01:30:21]} {[%emt 00:00:17]}
e5 {[%clk 01:32:36]} {[%emt 00:00:07]} 6. Ndb5 {[%clk 01:30:45]} {[%emt
00:00:05]} d6 {[%clk 01:32:57]} {[%emt 00:00:09]} 7. Bg5 {[%clk 01:31:11]}
{[%emt 00:00:04]} a6 {[%clk 01:33:22]} {[%emt 00:00:05]} 8. Na3 {[%clk
01:31:39]} {[%emt 00:00:02]} b5 {[%clk 01:33:48]} {[%emt 00:00:04]} 9. Nd5
{[%clk 01:31:44]} {[%emt 00:00:25]} Be7 {[%clk 01:34:12]} {[%emt 00:00:06]} 10.
Bxf6 {[%clk 01:32:03]} {[%emt 00:00:11]} Bxf6 {[%clk 01:34:37]} {[%emt
00:00:05]} 11. c3 {[%clk 01:32:12]} {[%emt 00:00:21]} O-O {[%clk 01:34:59]}
{[%emt 00:00:08]} 12. Nc2 {[%clk 01:31:24]} {[%emt 00:01:17]} Rb8 {[%clk
01:35:25]} {[%emt 00:00:05]} 13. h4 {[%clk 01:20:16]} {[%emt 00:11:38]} g6
{[%clk 01:34:08]} {[%emt 00:01:46]} 14. g3 {[%clk 01:20:30]} {[%emt 00:00:17]}
Bg7 {[%clk 01:34:23]} {[%emt 00:00:15]} 15. Bg2 {[%clk 01:15:45]} {[%emt
00:05:16]} Ne7 {[%clk 01:33:59]} {[%emt 00:00:53]} 16. h5 {[%clk 01:08:08]}
{[%emt 00:08:08]} Bb7 {[%clk 01:32:28]} {[%emt 00:02:01]} 17. Nce3 {[%clk
01:07:41]} {[%emt 00:00:57]} Nxd5 {[%clk 01:31:25]} {[%emt 00:01:33]} 18. Nxd5
{[%clk 01:07:47]} {[%emt 00:00:24]} Rc8 {[%clk 01:28:33]} {[%emt 00:03:21]} 19.
Qb3 {[%clk 01:02:52]} {[%emt 00:05:25]} Bf6 {[%clk 01:26:49]} {[%emt 00:02:15]}
20. hxg6 {[%clk 00:50:19]} {[%emt 00:13:03]} hxg6 {[%clk 01:27:12]} {[%emt
00:00:07]} 21. O-O-O {[%clk 00:50:33]} {[%emt 00:00:16]} Bxd5 {[%clk 01:18:00]}
{[%emt 00:09:42]} 22. Qxd5 {[%clk 00:38:45]} {[%emt 00:12:17]} Qb6 {[%clk
01:17:48]} {[%emt 00:00:43]} 23. Kb1 {[%clk 00:23:00]} {[%emt 00:16:15]} Rfd8
{[%clk 01:12:55]} {[%emt 00:05:23]} 24. Qd2 {[%clk 00:21:29]} {[%emt 00:02:01]}
Rc4 {[%clk 01:11:06]} {[%emt 00:02:19]} 25. Rhe1 {[%clk 00:17:30]} {[%emt
00:04:29]} b4 {[%clk 01:10:21]} {[%emt 00:01:15]} 26. cxb4 {[%clk 00:17:52]}
{[%emt 00:00:08]} Rxb4 {[%clk 01:10:43]} {[%emt 00:00:08]} 27. Re2 {[%clk
00:18:02]} {[%emt 00:00:20]} d5 {[%clk 01:09:09]} {[%emt 00:02:05]} 28. exd5
{[%clk 00:17:04]} {[%emt 00:01:28]} e4 {[%clk 01:05:14]} {[%emt 00:04:25]} 29.
Qc1 {[%clk 00:16:14]} {[%emt 00:01:20]} Rb8 {[%clk 01:04:26]} {[%emt 00:01:17]}
30. Rdd2 {[%clk 00:16:18]} {[%emt 00:00:26]} Bg5 {[%clk 00:59:11]} {[%emt
00:05:46]} 31. Bxe4 {[%clk 00:16:23]} {[%emt 00:00:24]} Bxd2 {[%clk 00:58:45]}
{[%emt 00:00:56]} 32. Qxd2 {[%clk 00:16:45]} {[%emt 00:00:08]} Qf6 {[%clk
00:57:35]} {[%emt 00:01:41]} 33. Qc1 {[%clk 00:15:27]} {[%emt 00:01:47]} a5
{[%clk 00:54:18]} {[%emt 00:03:47]} 34. f3 {[%clk 00:14:51]} {[%emt 00:01:07]}
a4 {[%clk 00:53:55]} {[%emt 00:00:52]} 35. g4 {[%clk 00:13:42]} {[%emt
00:01:39]} Qd4 {[%clk 00:46:06]} {[%emt 00:08:19]} 36. Rd2 {[%clk 00:12:05]}
{[%emt 00:02:06]} Qe3 {[%clk 00:46:27]} {[%emt 00:00:10]} 37. Qd1 {[%clk
00:09:05]} {[%emt 00:03:31]} Qc3 {[%clk 00:39:19]} {[%emt 00:07:37]} 38. Qc1
{[%clk 00:07:57]} {[%emt 00:01:38]} Qe3 {[%clk 00:39:25]} {[%emt 00:00:25]} 39.
Qd1 {[%clk 00:08:09]} {[%emt 00:00:17]} Qb6 {[%clk 00:36:00]} {[%emt 00:03:54]}
40. Qc1 {[%clk 00:07:38]} {[%emt 00:01:01]} Rd4 {[%clk 00:34:54]} {[%emt
00:01:36]} 41. Rh2 {[%clk 00:06:38]} {[%emt 00:01:29]} Qb5 {[%clk 00:35:00]}
{[%emt 00:00:26]} 42. Qh1 {[%clk 00:04:52]} {[%emt 00:02:15]} Kf8 {[%clk
00:33:42]} {[%emt 00:01:49]} 43. Rh8+ {[%clk 00:05:07]} {[%emt 00:00:15]} Ke7
{[%clk 00:33:58]} {[%emt 00:00:10]} 44. Rxb8 {[%clk 00:05:15]} {[%emt
00:00:26]} Qxb8 {[%clk 00:34:14]} {[%emt 00:00:14]} 45. Qh4+ {[%clk 00:05:38]}
{[%emt 00:00:07]} Kd7 {[%clk 00:30:45]} {[%emt 00:03:57]} 46. Qf6 {[%clk
00:05:49]} {[%emt 00:00:19]} Qb4 {[%clk 00:30:49]} {[%emt 00:00:25]} 47. Qxf7+
{[%clk 00:06:03]} {[%emt 00:00:19]} Kd8 {[%clk 00:30:57]} {[%emt 00:00:21]} 48.
Qg8+ {[%clk 00:05:27]} {[%emt 00:01:06]} Kc7 {[%clk 00:30:13]} {[%emt
00:00:58]} 49. Qf7+ {[%clk 00:05:29]} {[%emt 00:00:43]} Kd8 {[%clk 00:30:02]}
{[%emt 00:00:41]} 50. Qf6+ {[%clk 00:05:10]} {[%emt 00:00:50]} Kd7 {[%clk
00:30:21]} {[%emt 00:00:10]} 51. Qc6+ {[%clk 00:05:17]} {[%emt 00:00:25]} Kd8
{[%clk 00:30:04]} {[%emt 00:00:42]} 52. Qc3 {[%clk 00:01:46]} {[%emt 00:04:06]}
Qb6 {[%clk 00:28:31]} {[%emt 00:02:03]} 53. Kc2 {[%clk 00:00:54]} {[%emt
00:01:21]} g5 {[%clk 00:28:11]} {[%emt 00:00:50]} 54. Qc6 {[%clk 00:00:43]}
{[%emt 00:00:42]} Qb4 {[%clk 00:28:31]} {[%emt 00:00:09]} 55. Qf6+ {[%clk
00:01:07]} {[%emt 00:00:06]} Kc7 {[%clk 00:28:47]} {[%emt 00:00:14]} 56. Qc6+
{[%clk 00:01:27]} {[%emt 00:00:11]} Kd8 {[%clk 00:28:06]} {[%emt 00:01:11]} 57.
Qf6+ {[%clk 00:01:56]} {[%emt 00:00:01]} Kc7 {[%clk 00:28:26]} {[%emt
00:00:11]} 58. Qc6+ {[%clk 00:01:40]} {[%emt 00:00:45]} Kd8 {[%clk 00:28:48]}
{[%emt 00:00:07]} 59. Bd3 {[%clk 00:01:01]} {[%emt 00:01:10]} Ke7 {[%clk
00:26:42]} {[%emt 00:02:35]} 60. Qe6+ {[%clk 00:00:55]} {[%emt 00:00:37]} Kd8
{[%clk 00:26:52]} {[%emt 00:00:12]} 61. Qf6+ {[%clk 00:01:06]} {[%emt
00:00:27]} Kc7 {[%clk 00:27:04]} {[%emt 00:00:15]} 62. Qc6+ {[%clk 00:01:21]}
{[%emt 00:00:17]} Kd8 {[%clk 00:27:26]} {[%emt 00:00:07]} 63. Qf6+ {[%clk
00:00:37]} {[%emt 00:01:16]} Kc7 {[%clk 00:27:44]} {[%emt 00:00:11]} 64. Qc6+
{[%clk 00:00:36]} {[%emt 00:00:33]} Kd8 {[%clk 00:28:08]} {[%emt 00:00:06]} 65.
Qf6+ {[%clk 00:00:39]} {[%emt 00:00:26]} Kc7 {[%clk 00:28:30]} {[%emt
00:00:08]} 66. Qe5+ {[%clk 00:00:44]} {[%emt 00:00:26]} Kd8 {[%clk 00:28:00]}
{[%emt 00:00:59]} 67. Qxg5+ {[%clk 00:01:01]} {[%emt 00:00:14]} Kc7 {[%clk
00:28:20]} {[%emt 00:00:08]} 68. Qg7+ {[%clk 00:01:18]} {[%emt 00:00:15]} Kd8
{[%clk 00:28:18]} {[%emt 00:00:31]} 69. Qf6+ {[%clk 00:01:44]} {[%emt
00:00:05]} Kc7 {[%clk 00:28:42]} {[%emt 00:00:06]} 70. Qc6+ {[%clk 00:02:03]}
{[%emt 00:00:09]} Kd8 {[%clk 00:28:41]} {[%emt 00:00:32]} 71. Qf6+ {[%clk
00:01:52]} {[%emt 00:00:42]} Kc7 {[%clk 00:29:05]} {[%emt 00:00:06]} 72. Qc6+
{[%clk 00:01:20]} {[%emt 00:01:02]} Kd8 {[%clk 00:29:31]} {[%emt 00:00:05]} 73.
g5 {[%clk 00:01:30]} {[%emt 00:00:19]} Rh4 {[%clk 00:29:39]} {[%emt 00:00:22]}
74. Qf6+ {[%clk 00:01:46]} {[%emt 00:00:14]} Kc8 {[%clk 00:27:40]} {[%emt
00:02:23]} 75. Qc3+ {[%clk 00:01:49]} {[%emt 00:00:32]} Qxc3+ {[%clk 00:27:53]}
{[%emt 00:00:18]} 76. Kxc3 {[%clk 00:02:12]} {[%emt 00:00:08]} Kc7 {[%clk
00:28:12]} {[%emt 00:00:11]} 77. g6 {[%clk 00:02:31]} {[%emt 00:00:11]} Rh3
{[%clk 00:28:37]} {[%emt 00:00:05]} 78. f4 {[%clk 00:02:38]} {[%emt 00:00:24]}
Kd6 {[%clk 00:28:55]} {[%emt 00:00:11]} 79. f5 {[%clk 00:02:22]} {[%emt
00:00:47]} Ke7 {[%clk 00:28:32]} {[%emt 00:00:52]} 80. Kd4 {[%clk 00:02:11]}
{[%emt 00:00:41]} Rg3 {[%clk 00:28:18]} {[%emt 00:00:44]} 81. Be4 {[%clk
00:01:54]} {[%emt 00:00:47]} Kf6 {[%clk 00:28:42]} {[%emt 00:00:07]} 82. d6
{[%clk 00:02:16]} {[%emt 00:00:07]} Rg1 {[%clk 00:29:05]} {[%emt 00:00:07]} 83.
d7 {[%clk 00:02:13]} {[%emt 00:00:33]} Ke7 {[%clk 00:29:16]} {[%emt 00:00:19]}
84. Ke5 {[%clk 00:02:22]} {[%emt 00:00:21]} Kxd7 {[%clk 00:29:23]} {[%emt
00:00:23]} 85. Kf6 {[%clk 00:02:36]} {[%emt 00:00:16]} Kd6 {[%clk 00:29:10]}
{[%emt 00:00:43]} 86. g7 {[%clk 00:02:24]} {[%emt 00:00:42]} Rg4 {[%clk
00:29:35]} {[%emt 00:00:05]} 87. Bc2 {[%clk 00:02:40]} {[%emt 00:00:13]} Kd5
{[%clk 00:29:36]} {[%emt 00:00:31]} 88. Bxa4 {[%clk 00:03:00]} {[%emt
00:00:10]} 1-0

[Event "NJSK 2024 C"]
[Site "Groningen, Netherlands"]
[Date "2024.05.01"]
[Round "6.5"]
[White "Ambrona Navarro, Himar"]
[Black "Grooten, Tommy"]
[Result "0-1"]
[TimeControl "90min/40moves + 30min + 30sec/move"]
[WhiteElo "1963"]
[BlackElo "2018"]

1. d4 {[%clk 01:30:54]} {[%emt 00:00:06]} c5 {[%clk 01:30:43]} {[%emt
00:00:18]} 2. d5 {[%clk 01:30:26]} {[%emt 00:00:58]} e5 {[%clk 01:31:08]}
{[%emt 00:00:05]} 3. e4 {[%clk 01:29:14]} {[%emt 00:01:41]} d6 {[%clk
01:31:11]} {[%emt 00:00:27]} 4. Nc3 {[%clk 01:29:17]} {[%emt 00:00:28]} Be7
{[%clk 01:31:05]} {[%emt 00:00:34]} 5. Bb5+ {[%clk 01:28:33]} {[%emt 00:01:16]}
Nd7 {[%clk 01:30:20]} {[%emt 00:01:14]} 6. a4 {[%clk 01:27:17]} {[%emt
00:01:46]} Ngf6 {[%clk 01:28:08]} {[%emt 00:02:41]} 7. Nf3 {[%clk 01:26:13]}
{[%emt 00:01:34]} O-O {[%clk 01:26:49]} {[%emt 00:01:50]} 8. h3 {[%clk
01:25:02]} {[%emt 00:01:41]} a6 {[%clk 01:26:56]} {[%emt 00:00:24]} 9. Bd3
{[%clk 01:24:04]} {[%emt 00:01:26]} Rb8 {[%clk 01:24:57]} {[%emt 00:02:31]} 10.
O-O {[%clk 01:20:30]} {[%emt 00:04:04]} Re8 {[%clk 01:21:15]} {[%emt 00:04:11]}
11. Re1 {[%clk 01:19:14]} {[%emt 00:01:45]} Nf8 {[%clk 01:20:43]} {[%emt
00:01:01]} 12. Nd2 {[%clk 01:16:16]} {[%emt 00:03:29]} Bd7 {[%clk 01:18:35]}
{[%emt 00:02:39]} 13. a5 {[%clk 01:15:13]} {[%emt 00:01:32]} Ng6 {[%clk
01:16:52]} {[%emt 00:02:13]} 14. Nc4 {[%clk 01:13:15]} {[%emt 00:02:28]} h6
{[%clk 01:15:51]} {[%emt 00:01:32]} 15. Na4 {[%clk 01:09:22]} {[%emt 00:04:21]}
Bxa4 {[%clk 01:03:53]} {[%emt 00:12:29]} 16. Rxa4 {[%clk 01:09:39]} {[%emt
00:00:13]} Nh7 {[%clk 01:04:12]} {[%emt 00:00:12]} 17. Ne3 {[%clk 00:59:19]}
{[%emt 00:10:49]} Bg5 {[%clk 01:02:09]} {[%emt 00:02:34]} 18. Bf1 {[%clk
00:52:19]} {[%emt 00:07:28]} Qd7 {[%clk 00:57:12]} {[%emt 00:05:28]} 19. b3
{[%clk 00:49:50]} {[%emt 00:02:59]} Nf6 {[%clk 00:51:05]} {[%emt 00:06:37]} 20.
Nc4 {[%clk 00:47:54]} {[%emt 00:02:23]} Qe7 {[%clk 00:48:56]} {[%emt 00:02:42]}
21. Bxg5 {[%clk 00:42:51]} {[%emt 00:05:33]} hxg5 {[%clk 00:49:22]} {[%emt
00:00:04]} 22. Ne3 {[%clk 00:43:05]} {[%emt 00:00:13]} Qd7 {[%clk 00:45:31]}
{[%emt 00:04:24]} 23. Qf3 {[%clk 00:38:47]} {[%emt 00:04:43]} Nh4 {[%clk
00:37:21]} {[%emt 00:08:45]} 24. Qg3 {[%clk 00:36:32]} {[%emt 00:02:43]} Nh7
{[%clk 00:36:41]} {[%emt 00:01:12]} 25. Qg4 {[%clk 00:35:52]} {[%emt 00:01:08]}
Qd8 {[%clk 00:31:48]} {[%emt 00:05:25]} 26. Nc4 {[%clk 00:34:02]} {[%emt
00:02:19]} Ng6 {[%clk 00:22:25]} {[%emt 00:09:55]} 27. b4 {[%clk 00:32:06]}
{[%emt 00:02:24]} cxb4 {[%clk 00:21:16]} {[%emt 00:01:40]} 28. Rxb4 {[%clk
00:32:06]} {[%emt 00:00:29]} Ne7 {[%clk 00:21:35]} {[%emt 00:00:13]} 29. Qe2
{[%clk 00:29:04]} {[%emt 00:03:31]} f5 {[%clk 00:20:06]} {[%emt 00:02:00]} 30.
f3 {[%clk 00:28:49]} {[%emt 00:00:44]} Nf6 {[%clk 00:16:23]} {[%emt 00:04:13]}
31. Reb1 {[%clk 00:27:55]} {[%emt 00:01:24]} Qc7 {[%clk 00:16:04]} {[%emt
00:00:49]} 32. Nb6 {[%clk 00:23:28]} {[%emt 00:04:54]} Rf8 {[%clk 00:12:57]}
{[%emt 00:03:41]} 33. Qc4 {[%clk 00:22:22]} {[%emt 00:01:33]} Qd8 {[%clk
00:13:18]} {[%emt 00:00:11]} 34. R4b3 {[%clk 00:21:00]} {[%emt 00:01:50]} g4
{[%clk 00:10:08]} {[%emt 00:03:42]} 35. hxg4 {[%clk 00:19:42]} {[%emt
00:01:47]} fxg4 {[%clk 00:10:30]} {[%emt 00:00:09]} 36. fxg4 {[%clk 00:19:32]}
{[%emt 00:00:41]} Ng6 {[%clk 00:09:52]} {[%emt 00:01:09]} 37. Be2 {[%clk
00:16:02]} {[%emt 00:03:58]} Nh7 {[%clk 00:09:31]} {[%emt 00:00:52]} 38. Rc3
{[%clk 00:14:40]} {[%emt 00:01:50]} Nf4 {[%clk 00:09:08]} {[%emt 00:00:57]} 39.
Bf3 {[%clk 00:13:54]} {[%emt 00:01:11]} Qh4 {[%clk 00:07:39]} {[%emt 00:02:02]}
40. Nd7 {[%clk 00:11:38]} {[%emt 00:02:46]} Qg3 {[%emt 00:06:45]} 41. Kh1
{[%clk 00:06:50]} Ng5 {[%clk 00:06:53]} {[%emt 00:00:20]} 42. Qf1 {[%clk
00:05:10]} {[%emt 00:02:07]} Kf7 {[%clk 00:06:34]} {[%emt 00:00:51]} 43. Nxf8
{[%clk 00:02:23]} {[%emt 00:03:17]} Rxf8 {[%clk 00:06:59]} {[%emt 00:00:06]} 44.
Qe1 {[%clk 00:01:40]} {[%emt 00:01:11]} Rh8+ {[%clk 00:07:24]} {[%emt
00:00:07]} 45. Kg1 {[%clk 00:02:04]} {[%emt 00:00:05]} Nxf3+ {[%clk 00:07:48]}
{[%emt 00:00:06]} 46. Rxf3 {[%clk 00:01:26]} {[%emt 00:01:09]} Qxg2# {[%clk
00:08:13]} {[%emt 00:00:05]} 0-1

[Event "NJSK 2024 C"]
[Site "Groningen, Netherlands"]
[Date "2024.05.01"]
[Round "6.6"]
[White "Ngangbam, Chingthang"]
[Black "Zecha, Oscar"]
[Result "1/2-1/2"]
[TimeControl "90min/40moves + 30min + 30sec/move"]
[WhiteElo "1713"]
[BlackElo "1998"]

1. e4 {[%clk 01:30:47]} {[%emt 00:00:12]} e5 {[%clk 01:30:37]} {[%emt
00:00:24]} 2. Nf3 {[%clk 01:30:42]} {[%emt 00:00:35]} Nc6 {[%clk 01:30:49]}
{[%emt 00:00:07]} 3. Bc4 {[%clk 01:30:42]} {[%emt 00:00:41]} Bc5 {[%clk
01:31:13]} {[%emt 00:00:04]} 4. c3 {[%clk 01:30:45]} {[%emt 00:00:29]} Nf6
{[%clk 01:31:36]} {[%emt 00:00:05]} 5. d4 {[%clk 01:30:07]} {[%emt 00:01:10]}
exd4 {[%clk 01:32:01]} {[%emt 00:00:05]} 6. e5 {[%clk 01:30:20]} {[%emt
00:00:16]} d5 {[%clk 01:32:25]} {[%emt 00:00:06]} 7. Bb5 {[%clk 01:30:33]}
{[%emt 00:00:17]} Ne4 {[%clk 01:32:49]} {[%emt 00:00:07]} 8. cxd4 {[%clk
01:30:47]} {[%emt 00:00:15]} Bb6 {[%clk 01:33:14]} {[%emt 00:00:05]} 9. Nc3
{[%clk 01:30:36]} {[%emt 00:00:42]} O-O {[%clk 01:33:38]} {[%emt 00:00:06]} 10.
h3 {[%clk 01:25:42]} {[%emt 00:05:23]} Nxc3 {[%clk 01:19:40]} {[%emt 00:14:29]}
11. bxc3 {[%clk 01:26:00]} {[%emt 00:00:12]} f6 {[%clk 01:18:45]} {[%emt
00:01:25]} 12. O-O {[%clk 01:18:31]} {[%emt 00:07:58]} fxe5 {[%clk 01:18:01]}
{[%emt 00:01:15]} 13. Bxc6 {[%clk 01:10:58]} {[%emt 00:08:03]} bxc6 {[%clk
01:16:49]} {[%emt 00:01:42]} 14. Nxe5 {[%clk 01:10:17]} {[%emt 00:01:10]} c5
{[%clk 01:09:45]} {[%emt 00:07:35]} 15. Ba3 {[%clk 01:05:09]} {[%emt 00:05:39]}
Qg5 {[%clk 01:05:08]} {[%emt 00:05:07]} 16. Qd3 {[%clk 00:53:06]} {[%emt
00:12:31]} Rf5 {[%clk 00:44:27]} {[%emt 00:21:11]} 17. dxc5 {[%clk 00:49:16]}
{[%emt 00:04:19]} Rxe5 {[%clk 00:39:32]} {[%emt 00:05:26]} 18. f4 {[%clk
00:47:57]} {[%emt 00:01:48]} Qf5 {[%clk 00:37:25]} {[%emt 00:02:37]} 19. Qf3
{[%clk 00:42:26]} {[%emt 00:06:01]} Re6 {[%clk 00:36:32]} {[%emt 00:01:24]} 20.
cxb6 {[%clk 00:41:55]} {[%emt 00:01:00]} axb6 {[%clk 00:36:58]} {[%emt
00:00:04]} 21. Bb2 {[%clk 00:39:53]} {[%emt 00:02:33]} Ra4 {[%clk 00:36:26]}
{[%emt 00:01:02]} 22. Rad1 {[%clk 00:34:12]} {[%emt 00:06:10]} Bb7 {[%clk
00:36:05]} {[%emt 00:00:52]} 23. a3 {[%clk 00:32:41]} {[%emt 00:02:00]} Bc6
{[%clk 00:34:30]} {[%emt 00:02:05]} 24. Qg3 {[%clk 00:30:49]} {[%emt 00:02:21]}
Re2 {[%clk 00:32:21]} {[%emt 00:02:40]} 25. Rf2 {[%clk 00:23:38]} {[%emt
00:07:42]} Rxf2 {[%clk 00:29:56]} {[%emt 00:02:55]} 26. Qxf2 {[%clk 00:23:52]}
{[%emt 00:00:14]} Rxf4 {[%clk 00:27:47]} {[%emt 00:02:40]} 27. Qg3 {[%clk
00:23:33]} {[%emt 00:00:49]} Qe5 {[%clk 00:26:06]} {[%emt 00:02:12]} 28. Rd3
{[%clk 00:20:50]} {[%emt 00:03:13]} Re4 {[%clk 00:17:52]} {[%emt 00:08:45]} 29.
Qxe5 {[%clk 00:16:28]} {[%emt 00:04:51]} Rxe5 {[%clk 00:18:13]} {[%emt
00:00:09]} 30. c4 {[%clk 00:15:21]} {[%emt 00:01:37]} dxc4 {[%clk 00:13:01]}
{[%emt 00:05:42]} 31. Bxe5 {[%clk 00:10:55]} {[%emt 00:04:55]} cxd3 {[%clk
00:13:23]} {[%emt 00:00:08]} 32. Bf4 {[%clk 00:10:59]} {[%emt 00:00:25]} Kf7
{[%clk 00:03:16]} {[%emt 00:10:38]} 33. Kf2 {[%clk 00:10:25]} {[%emt 00:01:04]}
Ke6 {[%clk 00:03:03]} {[%emt 00:00:42]} 34. g3 {[%clk 00:10:27]} {[%emt
00:00:29]} Kd5 {[%clk 00:00:34]} {[%emt 00:02:59]} 35. Ke3 {[%clk 00:10:38]}
{[%emt 00:00:18]} Bd7 {[%clk 00:00:38]} {[%emt 00:00:27]} 36. Kxd3 {[%clk
00:08:44]} {[%emt 00:02:24]} Bf5+ {[%clk 00:00:32]} {[%emt 00:00:36]} 37. Kc3
{[%clk 00:08:43]} {[%emt 00:00:30]} c5 {[%clk 00:00:53]} {[%emt 00:00:10]} 38.
h4 {[%clk 00:07:50]} {[%emt 00:01:23]} Kc6 {[%clk 00:00:35]} {[%emt 00:00:48]}
39. Be5 {[%clk 00:07:40]} {[%emt 00:00:39]} g6 {[%clk 00:00:50]} {[%emt
00:00:15]} 40. Bf4 {[%clk 00:07:24]} {[%emt 00:00:46]} Kb5 {[%clk 00:01:06]}
{[%emt 00:00:16]} 41. Bc7 {[%clk 00:07:20]} {[%emt 00:00:33]} Kc6 {[%clk
00:01:21]} {[%emt 00:00:15]} 42. Bf4 {[%clk 00:07:38]} {[%emt 00:00:09]} Kd5
{[%clk 00:00:38]} {[%emt 00:01:16]} 43. Bc7 {[%clk 00:07:47]} {[%emt 00:00:20]}
b5 {[%clk 00:01:06]} {[%emt 00:00:03]} 44. Bf4 {[%clk 00:07:57]} {[%emt
00:00:20]} Ke4 {[%clk 00:00:54]} {[%emt 00:00:41]} 45. Bd6 {[%clk 00:08:12]}
{[%emt 00:00:15]} Kf3 {[%clk 00:00:40]} {[%emt 00:00:44]} 46. Bf4 {[%clk
00:08:17]} {[%emt 00:00:24]} Ke4 {[%clk 00:00:41]} {[%emt 00:00:31]} 47. Bd6
{[%clk 00:08:21]} {[%emt 00:00:26]} Kd5 {[%clk 00:01:08]} {[%emt 00:00:03]} 48.
Bf4 {[%clk 00:08:39]} {[%emt 00:00:10]} Kc6 {[%clk 00:01:37]} {[%emt 00:00:03]}
49. Be5 {[%clk 00:08:27]} {[%emt 00:00:42]} Kb6 {[%clk 00:01:46]} {[%emt
00:00:21]} 50. Bd6 {[%clk 00:08:43]} {[%emt 00:00:13]} Be4 {[%clk 00:01:26]}
{[%emt 00:00:50]} 51. Bf4 {[%clk 00:08:26]} {[%emt 00:00:47]} Ka5 {[%clk
00:01:16]} {[%emt 00:00:42]} 52. Bd6 {[%clk 00:08:34]} {[%emt 00:00:20]} Kb6
{[%clk 00:00:40]} {[%emt 00:01:06]} 53. Bf4 {[%clk 00:08:40]} {[%emt 00:00:23]}
Kc6 {[%clk 00:01:04]} {[%emt 00:00:08]} 54. Be5 {[%clk 00:08:28]} {[%emt
00:00:41]} Kd5 {[%clk 00:01:31]} {[%emt 00:00:04]} 55. Bf4 {[%clk 00:08:38]}
{[%emt 00:00:19]} Bb1 {[%clk 00:01:48]} {[%emt 00:00:14]} 56. Be3 {[%clk
00:08:29]} {[%emt 00:00:37]} Ba2 {[%clk 00:01:42]} {[%emt 00:00:37]} 57. Bf2
{[%clk 00:08:26]} {[%emt 00:00:32]} Bb1 {[%clk 00:01:01]} {[%emt 00:01:12]} 58.
Be3 {[%clk 00:08:45]} {[%emt 00:00:10]} Bf5 {[%clk 00:01:26]} {[%emt 00:00:06]}
59. Bf4 {[%clk 00:08:56]} {[%emt 00:00:19]} Ke4 {[%clk 00:01:34]} {[%emt
00:00:22]} 60. Bd6 {[%clk 00:09:07]} {[%emt 00:00:19]} Kf3 {[%clk 00:02:01]}
{[%emt 00:00:03]} 61. Bf4 {[%clk 00:08:54]} {[%emt 00:00:43]} h6 {[%clk
00:01:01]} {[%emt 00:01:30]} 62. Bxh6 {[%clk 00:08:36]} {[%emt 00:00:48]} Kxg3
{[%clk 00:01:28]} {[%emt 00:00:04]} 63. Bg5 {[%clk 00:08:58]} {[%emt 00:00:08]}
Be6 {[%clk 00:00:56]} {[%emt 00:01:03]} 64. Be7 {[%clk 00:09:08]} {[%emt
00:00:19]} Bd7 {[%clk 00:01:13]} {[%emt 00:00:13]} 65. Bf6 {[%clk 00:08:59]}
{[%emt 00:00:38]} Bc6 {[%clk 00:01:36]} {[%emt 00:00:07]} 1/2-1/2